fUSD/lending_fUSD_20250611
["ID","MTS","AMOUNT","RATE_DAILY","PERIOD"]
[365366234,1749619851480,-490.0,0.00016767,2]
[365366235,1749619851489,-190.21,0.00016767,2]
[365366236,1749619851499,-490.0,0.00016767,2]
[365366237,1749619851508,-299.00811528,0.00016767,2]
[365366238,1749619851517,-490.0,0.00016767,2]
[365366239,1749619851526,-426.75347296,0.00016767,2]
[365366240,1749619851535,-584.11,0.00016767,2]
[365366241,1749619851545,-490.0,0.00016767,2]
[365366242,1749619851559,-490.0,0.00016767,2]
[365366243,1749619851568,-226.31,0.00016767,2]
[365366244,1749619851577,-490.0,0.00016767,2]
[365366245,1749619851586,-490.0,0.00016767,2]
[365366246,1749619851596,-490.0,0.00016767,2]
[365366247,1749619851605,-72.05712418,0.00016767,2]
[365366248,1749619851621,-417.94287582,0.00016767,2]
[365366249,1749619851631,-480.0,0.00016767,2]
[365366250,1749619851640,-482.29765051,0.00016767,2]
[365366251,1749619851650,-490.0,0.00016767,2]
[365366252,1749619851659,-405.34121191,0.00016767,2]
[365366253,1749619851668,-490.0,0.00016767,2]
[365366254,1749619851677,-490.0,0.00016767,2]
[365366255,1749619851686,-490.0,0.00016767,2]
[365366256,1749619851695,-393.9077413,0.00016767,2]
[365366257,1749619851704,-490.0,0.00016767,2]
[365366258,1749619851714,-480.0,0.00016767,2]
[365366259,1749619851724,-480.0,0.00016767,2]
[365366260,1749619851733,-490.0,0.00016767,2]
[365366261,1749619851742,-500.10766968,0.00016767,2]
[365366262,1749619851751,-422.75481175,0.00016767,2]
[365366263,1749619851760,-464.61805518,0.00016767,2]
[365366264,1749619851770,-490.0,0.00016767,2]
[365366265,1749619851779,-536.81,0.00016767,2]
[365366266,1749619851789,-490.0,0.00016767,2]
[365366267,1749619851799,-490.0,0.00016767,2]
[365366268,1749619851808,-490.0,0.00016767,2]
[365366269,1749619851817,-860.96,0.00016767,2]
[365366270,1749619851827,-490.0,0.00016767,2]
[365366271,1749619851836,-490.0,0.00016767,2]
[365366272,1749619851845,-490.0,0.00016767,2]
[365366273,1749619851855,-490.0,0.00016767,2]
[365366274,1749619851864,-490.0,0.00016767,2]
[365366275,1749619851872,-490.0,0.00016767,2]
[365366276,1749619851881,-490.0,0.00016767,2]
[365366277,1749619851890,-490.0,0.00016767,2]
[365366278,1749619851900,-359.77688672,0.00016767,2]
[365366279,1749619851910,-490.0,0.00016767,2]
[365366280,1749619851919,-490.0,0.00016767,2]
[365366281,1749619851928,-490.0,0.00016767,2]
[365366282,1749619851938,-490.0,0.00016767,2]
[365366283,1749619851947,-490.0,0.00016767,2]
[365366284,1749619851956,-490.0,0.00016767,2]
[365366285,1749619851965,-490.0,0.00016767,2]
[365366286,1749619851974,-490.0,0.00016767,2]
[365366287,1749619851984,-490.0,0.00016767,2]
[365366288,1749619851994,-490.0,0.00016767,2]
[365366289,1749619852004,-445.18072913,0.00016767,2]
[365366290,1749619852013,-551.44752533,0.00016767,2]
[365366291,1749619852022,-446.34103895,0.00016767,2]
[365366292,1749619852031,-490.0,0.00016767,2]
[365366293,1749619852041,-430.0,0.00016767,2]
[365366294,1749619852050,-490.0,0.00016767,2]
[365366295,1749619852059,-548.81,0.00016767,2]
[365366296,1749619852069,-178.66966778,0.00016767,2]
[365366297,1749619852082,-311.33033222,0.00016767,2]
[365366298,1749619852092,-476.83638856,0.00016767,2]
[365366299,1749619852102,-145.80827922,0.00016767,2]
[365366300,1749619852114,-5912.34172078,0.00016767,2]
[365366301,1749619852124,-490.0,0.00016767,2]
[365366302,1749619852133,-546.39,0.00016767,2]
[365366303,1749619852143,-170.16,0.00016767,2]
[365366304,1749619852152,-490.0,0.00016767,2]
[365366305,1749619852162,-490.0,0.00016767,2]
[365366306,1749619852172,-297.90979725,0.00016767,2]
[365366307,1749619852181,-1652.69,0.00016767,2]
[365366308,1749619852192,-490.0,0.00016767,2]
[365366309,1749619852201,-490.0,0.00016767,2]
[365366310,1749619852211,-490.0,0.00016767,2]
[365366311,1749619852221,-490.0,0.00016767,2]
[365366312,1749619852231,-510.82,0.00016767,2]
[365366313,1749619852241,-347.99110328,0.00016767,2]
[365366314,1749619852251,-490.0,0.00016767,2]
[365366315,1749619852260,-490.0,0.00016767,2]
[365366316,1749619852270,-490.0,0.00016767,2]
[365366317,1749619852280,-490.0,0.00016767,2]
[365366318,1749619852290,-340.92137838,0.00016767,2]
[365366319,1749619852300,-490.0,0.00016767,2]
[365366320,1749619852309,-518.87905747,0.00016767,2]
[365366321,1749619852319,-490.0,0.00016767,2]
[365366322,1749619852328,-439.68174153,0.00016767,2]
[365366323,1749619852338,-490.0,0.00016767,2]
[365366324,1749619852347,-310.54,0.00016767,2]
[365366325,1749619852357,-490.0,0.00016767,2]
[365366326,1749619852366,-480.0,0.00016767,2]
[365366327,1749619852376,-631.47,0.00016767,2]
[365366328,1749619852385,-250.0,0.00016794,2]
[365366329,1749619852394,-490.0,0.00016931,2]
[365366330,1749619852404,-490.0,0.00016931,2]
[365366331,1749619852413,-154.63070536,0.00016931,2]
[365366332,1749619852422,-490.0,0.00016931,2]
[365366333,1749619852431,-490.0,0.00016931,2]
[365366334,1749619852441,-490.0,0.00016931,2]
[365366335,1749619852450,-490.0,0.00016931,2]
[365366336,1749619852459,-467.29,0.00016931,2]
[365366337,1749619852469,-490.0,0.00016931,2]
[365366338,1749619852478,-490.0,0.00016931,2]
[365366339,1749619852488,-480.0,0.00016931,2]
[365366340,1749619852497,-397.03305116,0.00016931,2]
[365366341,1749619852507,-470.0,0.00016931,2]
[365366342,1749619852517,-480.0,0.00016931,2]
[365366343,1749619852526,-480.0,0.00016931,2]
[365366344,1749619852535,-490.0,0.00016931,2]
[365366345,1749619852547,-470.0,0.00016931,2]
[365366346,1749619852558,-490.0,0.00016931,2]
[365366347,1749619852567,-490.0,0.00016931,2]
[365366348,1749619852577,-536.81,0.00016931,2]
[365366349,1749619852586,-490.0,0.00016931,2]
[365366350,1749619852596,-180.84288307,0.00016931,2]
[365366351,1749619852605,-490.0,0.00016931,2]
[365366352,1749619852615,-860.96,0.00016931,2]
[365366353,1749619852625,-150.7,0.00016931,2]
[365366354,1749619852635,-490.0,0.00016931,2]
[365366355,1749619852644,-490.0,0.00016931,2]
[365366356,1749619852654,-490.0,0.00016931,2]
[365366357,1749619852663,-474.11683531,0.00016931,2]
[365366358,1749619852673,-490.0,0.00016931,2]
[365366359,1749619852682,-490.0,0.00016931,2]
[365366360,1749619852691,-490.0,0.00016931,2]
[365366361,1749619852701,-490.0,0.00016931,2]
[365366362,1749619852710,-490.0,0.00016931,2]
[365366363,1749619852719,-490.0,0.00016931,2]
[365366364,1749619852729,-490.0,0.00016931,2]
[365366365,1749619852738,-490.0,0.00016931,2]
[365366366,1749619852748,-490.0,0.00016931,2]
[365366367,1749619852757,-490.0,0.00016931,2]
[365366368,1749619852766,-490.0,0.00016931,2]
[365366369,1749619852776,-490.0,0.00016931,2]
[365366370,1749619852786,-490.0,0.00016931,2]
[365366371,1749619852796,-532.63,0.00016931,2]
[365366372,1749619852805,-490.0,0.00016931,2]
[365366373,1749619852814,-6058.15,0.00016931,2]
[365366374,1749619852823,-490.0,0.00016931,2]
[365366375,1749619852833,-546.39,0.00016931,2]
[365366376,1749619852842,-490.0,0.00016931,2]
[365366377,1749619852851,-490.0,0.00016931,2]
[365366378,1749619852861,-1652.69,0.00016931,2]
[365366379,1749619852870,-490.0,0.00016931,2]
[365366380,1749619852880,-490.0,0.00016931,2]
[365366381,1749619852890,-490.0,0.00016931,2]
[365366382,1749619852900,-517.1,0.00016931,2]
[365366383,1749619852910,-510.82,0.00016931,2]
[365366384,1749619852919,-490.0,0.00016931,2]
[365366385,1749619852929,-309.44828029,0.00016931,2]
[365366386,1749619852938,-490.0,0.00016931,2]
[365366387,1749619852947,-490.0,0.00016931,2]
[365366388,1749619852957,-460.0,0.00016931,2]
[365366389,1749619852966,-480.0,0.00016931,2]
[365366390,1749619852976,-317.70110294,0.00016931,2]
[365366391,1749619852986,-490.0,0.00016931,2]
[365366392,1749619852996,-150.0,0.00017067,2]
[365366393,1749619853005,-537.18108161,0.00017095,2]
[365366394,1749619853015,-490.0,0.00017095,2]
[365366395,1749619853025,-490.0,0.00017095,2]
[365366396,1749619853034,-490.0,0.00017095,2]
[365366397,1749619853044,-490.0,0.00017095,2]
[365366398,1749619853053,-254.88554178,0.00017095,2]
[365366399,1749619853063,-430.75818429,0.00017095,2]
[365366400,1749619853072,-470.0,0.00017095,2]
[365366401,1749619853081,-490.0,0.00017095,2]
[365366402,1749619853091,-349.77833085,0.00017095,2]
[365366403,1749619853101,-536.81,0.00017095,2]
[365366404,1749619853111,-490.0,0.00017095,2]
[365366405,1749619853120,-490.0,0.00017095,2]
[365366406,1749619853130,-860.96,0.00017095,2]
[365366407,1749619853139,-490.0,0.00017095,2]
[365366408,1749619853149,-490.0,0.00017095,2]
[365366409,1749619853159,-490.0,0.00017095,2]
[365366410,1749619853169,-490.0,0.00017095,2]
[365366411,1749619853178,-490.0,0.00017095,2]
[365366412,1749619853188,-490.0,0.00017095,2]
[365366413,1749619853198,-490.0,0.00017095,2]
[365366414,1749619853208,-490.0,0.00017095,2]
[365366415,1749619853218,-490.0,0.00017095,2]
[365366416,1749619853227,-490.0,0.00017095,2]
[365366417,1749619853237,-490.0,0.00017095,2]
[365366418,1749619853246,-490.0,0.00017095,2]
[365366419,1749619853257,-490.0,0.00017095,2]
[365366420,1749619853267,-490.0,0.00017095,2]
[365366421,1749619853276,-490.0,0.00017095,2]
[365366422,1749619853286,-490.0,0.00017095,2]
[365366423,1749619853296,-490.0,0.00017095,2]
[365366424,1749619853306,-6058.15,0.00017095,2]
[365366425,1749619853315,-490.0,0.00017095,2]
[365366426,1749619853324,-546.39,0.00017095,2]
[365366427,1749619853334,-490.0,0.00017095,2]
[365366428,1749619853343,-490.0,0.00017095,2]
[365366429,1749619853354,-1652.69,0.00017095,2]
[365366430,1749619853363,-490.0,0.00017095,2]
[365366431,1749619853373,-589.44,0.00017095,2]
[365366432,1749619853383,-490.0,0.00017095,2]
[365366433,1749619853392,-510.82,0.00017095,2]
[365366434,1749619853402,-490.0,0.00017095,2]
[365366435,1749619853412,-490.0,0.00017095,2]
[365366436,1749619853421,-490.0,0.00017095,2]
[365366437,1749619853431,-490.0,0.00017095,2]
[365366438,1749619853440,-8057.03503502,0.0001713,2]
[365366439,1749619853449,-196.38629123,0.0001713,2]
[365366440,1749619853458,-2135.91406501,0.0001713,2]
[365366441,1749619853468,-833.29909032,0.00017145,2]
[365366442,1749619853477,-490.0,0.0001726,2]
[365366443,1749619853487,-513.53327823,0.0001726,2]
[365366444,1749619853496,-490.0,0.0001726,2]
[365366445,1749619853505,-490.0,0.0001726,2]
[365366446,1749619853514,-373.04,0.0001726,2]
[365366447,1749619853524,-536.81,0.0001726,2]
[365366448,1749619853533,-193.22,0.0001726,2]
[365366449,1749619853542,-490.0,0.0001726,2]
[365366450,1749619853557,-860.96,0.0001726,2]
[365366451,1749619853566,-490.0,0.0001726,2]
[365366452,1749619853576,-490.0,0.0001726,2]
[365366453,1749619853585,-262.9,0.0001726,2]
[365366454,1749619853594,-490.0,0.0001726,2]
[365366455,1749619853604,-490.0,0.0001726,2]
[365366456,1749619853614,-490.0,0.0001726,2]
[365366457,1749619853624,-490.0,0.0001726,2]
[365366458,1749619853633,-490.0,0.0001726,2]
[365366459,1749619853642,-490.0,0.0001726,2]
[365366460,1749619853652,-474.94,0.0001726,2]
[365366461,1749619853661,-490.0,0.0001726,2]
[365366462,1749619853670,-490.0,0.0001726,2]
[365366463,1749619853679,-490.0,0.0001726,2]
[365366464,1749619853689,-330.21,0.0001726,2]
[365366465,1749619853698,-490.0,0.0001726,2]
[365366466,1749619853707,-490.0,0.0001726,2]
[365366467,1749619853718,-490.0,0.0001726,2]
[365366468,1749619853727,-6058.15,0.0001726,2]
[365366469,1749619853736,-555.43362796,0.0001726,2]
[365366470,1749619853746,-546.39,0.0001726,2]
[365366471,1749619853756,-490.0,0.0001726,2]
[365366472,1749619853765,-490.0,0.0001726,2]
[365366473,1749619853775,-1652.69,0.0001726,2]
[365366474,1749619853785,-490.0,0.0001726,2]
[365366475,1749619853794,-490.0,0.0001726,2]
[365366476,1749619853804,-510.82,0.0001726,2]
[365366477,1749619853814,-490.0,0.0001726,2]
[365366478,1749619853823,-490.0,0.0001726,2]
[365366479,1749619853833,-490.0,0.0001726,2]
[365366480,1749619853843,-490.0,0.0001726,2]
[365366481,1749619853853,-490.0,0.00017424,2]
[365366482,1749619853862,-490.0,0.00017424,2]
[365366483,1749619853872,-490.0,0.00017424,2]
[365366484,1749619853882,-536.81,0.00017424,2]
[365366485,1749619853891,-490.0,0.00017424,2]
[365366486,1749619853900,-860.96,0.00017424,2]
[365366487,1749619853909,-490.0,0.00017424,2]
[365366488,1749619853918,-490.0,0.00017424,2]
[365366489,1749619853928,-490.0,0.00017424,2]
[365366490,1749619853937,-490.0,0.00017424,2]
[365366491,1749619853946,-490.0,0.00017424,2]
[365366492,1749619853955,-490.0,0.00017424,2]
[365366493,1749619853964,-490.0,0.00017424,2]
[365366494,1749619853974,-490.0,0.00017424,2]
[365366495,1749619853983,-490.0,0.00017424,2]
[365366496,1749619853993,-490.0,0.00017424,2]
[365366497,1749619854002,-490.0,0.00017424,2]
[365366498,1749619854012,-490.0,0.00017424,2]
[365366499,1749619854022,-490.0,0.00017424,2]
[365366500,1749619854031,-490.0,0.00017424,2]
[365366501,1749619854041,-6058.15,0.00017424,2]
[365366502,1749619854051,-546.39,0.00017424,2]
[365366503,1749619854061,-490.0,0.00017424,2]
[365366504,1749619854070,-397.05269696,0.00017424,2]
[365366505,1749619854080,-1652.69,0.00017424,2]
[365366506,1749619854090,-490.0,0.00017424,2]
[365366507,1749619854099,-490.0,0.00017424,2]
[365366508,1749619854109,-510.82,0.00017424,2]
[365366509,1749619854119,-490.0,0.00017424,2]
[365366510,1749619854128,-490.0,0.00017424,2]
[365366511,1749619854137,-490.0,0.00017424,2]
[365366512,1749619854147,-490.0,0.00017424,2]
[365366513,1749619854156,-6781.48520379,0.00017525,2]
[365366514,1749619854166,-8057.03503502,0.00017525,2]
[365366515,1749619854175,-196.38629123,0.00017525,2]
[365366516,1749619854185,-2135.91406501,0.00017525,2]
[365366517,1749619854195,-204.0,0.00017537,3]
[365366518,1749619854204,-490.0,0.00017589,2]
[365366519,1749619854213,-490.0,0.00017589,2]
[365366520,1749619854223,-174.27,0.00017589,2]
[365366521,1749619854232,-536.81,0.00017589,2]
[365366522,1749619854241,-490.0,0.00017589,2]
[365366523,1749619854251,-860.96,0.00017589,2]
[365366524,1749619854260,-490.0,0.00017589,2]
[365366525,1749619854270,-490.0,0.00017589,2]
[365366526,1749619854279,-490.0,0.00017589,2]
[365366527,1749619854288,-490.0,0.00017589,2]
[365366528,1749619854298,-262.43,0.00017589,2]
[365366529,1749619854307,-490.0,0.00017589,2]
[365366530,1749619854316,-490.0,0.00017589,2]
[365366531,1749619854326,-490.0,0.00017589,2]
[365366532,1749619854335,-490.0,0.00017589,2]
[365366533,1749619854353,-490.0,0.00017589,2]
[365366534,1749619854365,-490.0,0.00017589,2]
[365366535,1749619854374,-512.39,0.00017589,2]
[365366536,1749619854383,-490.0,0.00017589,2]
[365366537,1749619854392,-490.0,0.00017589,2]
[365366538,1749619854402,-6058.15,0.00017589,2]
[365366539,1749619854411,-546.39,0.00017589,2]
[365366540,1749619854420,-490.0,0.00017589,2]
[365366541,1749619854430,-1652.69,0.00017589,2]
[365366542,1749619854440,-490.0,0.00017589,2]
[365366543,1749619854449,-178.44,0.00017589,2]
[365366544,1749619854459,-510.82,0.00017589,2]
[365366545,1749619854468,-490.0,0.00017589,2]
[365366546,1749619854478,-490.0,0.00017589,2]
[365366547,1749619854487,-490.0,0.00017589,2]
[365366548,1749619854497,-490.0,0.00017589,2]
[365366549,1749619854507,-438.76084858,0.00017653,2]
[365366550,1749619854516,-250.0,0.00017656,2]
[365366551,1749619854526,-250.0,0.00017691,2]
[365366552,1749619854536,-245.0,0.000177,2]
[365366553,1749619854548,-600.0,0.00017746,4]
[365366554,1749619854558,-201.0,0.00017748,2]
[365366555,1749619854568,-420.0,0.00017748,2]
[365366556,1749619854578,-500.0,0.00017752,2]
[365366557,1749619854587,-500.0,0.00017752,2]
[365366558,1749619854598,-490.0,0.00017753,2]
[365366559,1749619854608,-490.0,0.00017753,2]
[365366560,1749619854619,-536.81,0.00017753,2]
[365366561,1749619854629,-490.0,0.00017753,2]
[365366562,1749619854639,-860.96,0.00017753,2]
[365366563,1749619854648,-564.18,0.00017753,2]
[365366564,1749619854658,-400.21,0.00017753,2]
[365366565,1749619854668,-490.0,0.00017753,2]
[365366566,1749619854677,-490.0,0.00017753,2]
[365366567,1749619854687,-490.0,0.00017753,2]
[365366568,1749619854696,-182.67046518,0.00017753,2]
[365366569,1749619854706,-490.0,0.00017753,2]
[365366570,1749619854715,-490.0,0.00017753,2]
[365366571,1749619854725,-490.0,0.00017753,2]
[365366572,1749619854734,-490.0,0.00017753,2]
[365366573,1749619854743,-490.0,0.00017753,2]
[365366574,1749619854752,-490.0,0.00017753,2]
[365366575,1749619854762,-6058.15,0.00017753,2]
[365366576,1749619854770,-546.39,0.00017753,2]
[365366577,1749619854780,-343.57232576,0.00017753,2]
[365366578,1749619854789,-1652.69,0.00017753,2]
[365366579,1749619854799,-490.0,0.00017753,2]
[365366580,1749619854808,-510.82,0.00017753,2]
[365366581,1749619854818,-490.0,0.00017753,2]
[365366582,1749619854828,-513.54240676,0.00017753,2]
[365366583,1749619854837,-312.65726725,0.00017753,2]
[365366584,1749619854846,-490.0,0.00017753,2]
[365366585,1749619854855,-300.0,0.0001778,2]
[365366586,1749619854865,-600.0,0.0001778,4]
[365366587,1749619854875,-250.0,0.0001778,2]
[365366588,1749619854885,-161.45013078,0.000179,2]
[365366589,1749619854893,-311.65800355,0.00017917,2]
[365366590,1749619854902,-490.0,0.00017917,2]
[365366591,1749619854912,-536.81,0.00017917,2]
[365366592,1749619854921,-510.98,0.00017917,2]
[365366593,1749619854930,-860.96,0.00017917,2]
[365366594,1749619854939,-490.0,0.00017917,2]
[365366595,1749619854948,-490.0,0.00017917,2]
[365366596,1749619854957,-516.63551303,0.00017917,2]
[365366597,1749619854967,-490.0,0.00017917,2]
[365366598,1749619854976,-490.0,0.00017917,2]
[365366599,1749619854986,-490.0,0.00017917,2]
[365366600,1749619854995,-490.0,0.00017917,2]
[365366601,1749619855004,-339.67044577,0.00017917,2]
[365366602,1749619855014,-349.35,0.00017917,2]
[365366603,1749619855023,-6058.15,0.00017917,2]
[365366604,1749619855033,-546.39,0.00017917,2]
[365366605,1749619855042,-1652.69,0.00017917,2]
[365366606,1749619855053,-490.0,0.00017917,2]
[365366607,1749619855062,-510.82,0.00017917,2]
[365366608,1749619855072,-490.0,0.00017917,2]
[365366609,1749619855081,-490.0,0.00017917,2]
[365366610,1749619855092,-8057.03503502,0.00017921,2]
[365366611,1749619855102,-196.38629123,0.00017921,2]
[365366612,1749619855112,-2135.91406501,0.00017921,2]
[365366613,1749619855122,-1000.0,0.0001797,2]
[365366614,1749619855330,-154.45,0.00018,2]
[365366615,1749619855340,-154.45,0.00018,2]
[365366616,1749619855349,-9113.37764904,0.00018,2]
[365366617,1749619855359,-3187.05802718,0.00018,2]
[365366618,1749619855368,-348.79545,0.00018,2]
[365366619,1749619855377,-573.48714539,0.00018082,2]
[365366620,1749619855386,-536.81,0.00018082,2]
[365366621,1749619855396,-860.96,0.00018082,2]
[365366622,1749619855405,-490.0,0.00018082,2]
[365366623,1749619855415,-490.0,0.00018082,2]
[365366624,1749619855425,-490.0,0.00018082,2]
[365366625,1749619855435,-490.0,0.00018082,2]
[365366626,1749619855444,-490.0,0.00018082,2]
[365366627,1749619855454,-490.0,0.00018082,2]
[365366628,1749619855463,-6058.15,0.00018082,2]
[365366629,1749619855473,-546.39,0.00018082,2]
[365366630,1749619855483,-1652.69,0.00018082,2]
[365366631,1749619855492,-266.98,0.00018082,2]
[365366632,1749619855502,-510.82,0.00018082,2]
[365366633,1749619855511,-490.0,0.00018082,2]
[365366634,1749619855520,-490.0,0.00018082,2]
[365366635,1749619855529,-161.45013076,0.00018119,2]
[365366636,1749619855539,-500.0,0.00018194,2]
[365366637,1749619855550,-536.81,0.00018246,2]
[365366638,1749619855561,-860.96,0.00018246,2]
[365366639,1749619855570,-490.0,0.00018246,2]
[365366640,1749619855580,-490.0,0.00018246,2]
[365366641,1749619855589,-490.0,0.00018246,2]
[365366642,1749619855598,-531.67398296,0.00018246,2]
[365366643,1749619855608,-490.0,0.00018246,2]
[365366644,1749619855617,-490.0,0.00018246,2]
[365366645,1749619855627,-6058.15,0.00018246,2]
[365366646,1749619855636,-546.39,0.00018246,2]
[365366647,1749619855646,-1652.69,0.00018246,2]
[365366648,1749619855654,-510.82,0.00018246,2]
[365366649,1749619855664,-490.0,0.00018246,2]
[365366650,1749619855673,-490.0,0.00018246,2]
[365366651,1749619855683,-8057.03503502,0.00018317,2]
[365366652,1749619855692,-196.38629123,0.00018317,2]
[365366653,1749619855701,-1122.40740873,0.00018317,2]
[365366654,1749619855716,-1013.50665628,0.00018317,2]
[365366655,1749619855726,-496.03,0.00018345,2]
[365366656,1749619855735,-536.81,0.0001841,2]
[365366657,1749619855745,-860.96,0.0001841,2]
[365366658,1749619855754,-490.0,0.0001841,2]
[365366659,1749619855763,-490.0,0.0001841,2]
[365366660,1749619855773,-490.0,0.0001841,2]
[365366661,1749619855783,-490.0,0.0001841,2]
[365366662,1749619855793,-490.0,0.0001841,2]
[365366663,1749619855803,-6058.15,0.0001841,2]
[365366664,1749619855812,-546.39,0.0001841,2]
[365366665,1749619855822,-1652.69,0.0001841,2]
[365366666,1749619855831,-510.82,0.0001841,2]
[365366667,1749619855840,-490.0,0.0001841,2]
[365366668,1749619855849,-490.0,0.0001841,2]
[365366669,1749619855858,-858.24813769,0.00018439,2]
[365366670,1749619855867,-536.81,0.00018575,2]
[365366671,1749619855877,-860.96,0.00018575,2]
[365366672,1749619855886,-380.66,0.00018575,2]
[365366673,1749619855895,-490.0,0.00018575,2]
[365366674,1749619855904,-490.0,0.00018575,2]
[365366675,1749619855913,-490.0,0.00018575,2]
[365366676,1749619855923,-490.0,0.00018575,2]
[365366677,1749619855932,-6058.15,0.00018575,2]
[365366678,1749619855941,-546.39,0.00018575,2]
[365366679,1749619855950,-1652.69,0.00018575,2]
[365366680,1749619855959,-510.82,0.00018575,2]
[365366681,1749619855969,-490.0,0.00018575,2]
[365366682,1749619855978,-490.0,0.00018575,2]
[365366683,1749619855987,-8057.03503502,0.00018713,2]
[365366684,1749619855997,-196.38629123,0.00018713,2]
[365366685,1749619856006,-2135.91406501,0.00018713,2]
[365366686,1749619856015,-536.81,0.00018739,2]
[365366687,1749619856024,-860.96,0.00018739,2]
[365366688,1749619856034,-490.0,0.00018739,2]
[365366689,1749619856043,-490.0,0.00018739,2]
[365366690,1749619856053,-490.0,0.00018739,2]
[365366691,1749619856062,-490.0,0.00018739,2]
[365366692,1749619856072,-6058.15,0.00018739,2]
[365366693,1749619856082,-546.39,0.00018739,2]
[365366694,1749619856091,-1652.69,0.00018739,2]
[365366695,1749619856101,-510.82,0.00018739,2]
[365366696,1749619856111,-490.0,0.00018739,2]
[365366697,1749619856120,-490.0,0.00018739,2]
[365366698,1749619856130,-1037.16002509,0.00018745,2]
[365366699,1749619856139,-438.76084858,0.00018763,2]
[365366700,1749619856149,-164.04,0.00018835,2]
[365366701,1749619856158,-204.0,0.00018864,5]
[365366702,1749619856167,-536.81,0.00018904,2]
[365366703,1749619856176,-181.47300533,0.00018904,2]
[365366704,1749619856340,-493.7,0.00016338,2]
[365366705,1749619856349,-243.85066796,0.000179,2]
[365366706,1749619856358,-243.85066789,0.00017969,2]
[365366707,1749619856367,-243.85066789,0.00018038,2]
[365366708,1749619856377,-679.48699467,0.00018904,2]
[365366709,1749619856386,-490.0,0.00018904,2]
[365366710,1749619856396,-490.0,0.00018904,2]
[365366711,1749619856405,-490.0,0.00018904,2]
[365366712,1749619856414,-490.0,0.00018904,2]
[365366713,1749619856423,-6058.15,0.00018904,2]
[365366714,1749619856433,-546.39,0.00018904,2]
[365366715,1749619856442,-1652.69,0.00018904,2]
[365366716,1749619856451,-510.82,0.00018904,2]
[365366717,1749619856461,-255.48,0.00018904,2]
[365366718,1749619856470,-552.44901078,0.00018904,2]
[365366719,1749619856479,-500.0,0.00018904,2]
[365366720,1749619856489,-151.0,0.00018953,2]
[365366721,1749619856498,-1957.856,0.00018953,2]
[365366722,1749619856507,-785.90071411,0.00018953,2]
[365366723,1749619856516,-151.0,0.00018953,2]
[365366724,1749619856525,-151.0,0.00018953,2]
[365366725,1749619856537,-151.0,0.00018953,2]
[365366726,1749619856548,-151.0,0.00018953,2]
[365366727,1749619856559,-500.0,0.00018953,2]
[365366728,1749619856568,-500.0,0.00018953,2]
[365366729,1749619856578,-500.0,0.00018953,2]
[365366730,1749619856587,-500.0,0.00018953,2]
[365366731,1749619856597,-500.0,0.00018953,2]
[365366732,1749619856607,-500.0,0.00018953,2]
[365366733,1749619856616,-180.10687711,0.00018953,2]